[Event "Titled Tuesday Blitz March 21 Early 2023"]
[White "Pranav, V"]
[Black "Dubov, Daniil"]
[WhiteFideId "25060783"]
[BlackFideId "24126055"]
[WhiteElo "2500"]
[BlackElo "2802"]
[Result "0-1"]
[Round "06"]
[TimeControl "180+2"]
[Date "2023.03.21"]
[WhiteClock "0:00:01"]
[BlackClock "0:00:15"]

1. e4 {[%clk 0:03:00]}  e5 {[%clk 0:02:59]} 2. Nf3 {[%clk 0:03:01]}  Nc6 {[%clk 0:03:00]} 3. Bb5 {[%clk 0:03:01]}  a6 {[%clk 0:03:01]} 4. Ba4 {[%clk 0:03:01]}  Nf6 {[%clk 0:03:01]} 5. O-O {[%clk 0:03:01]}  Be7 {[%clk 0:03:02]} 6. d3 {[%clk 0:03:01]}  b5 {[%clk 0:03:01]} 7. Bb3 {[%clk 0:03:01]}  d6 {[%clk 0:03:02]} 8. c3 {[%clk 0:03:01]}  O-O {[%clk 0:03:00]} 9. Nbd2 {[%clk 0:03:01]}  Na5 {[%clk 0:02:57]} 10. Bc2 {[%clk 0:03:02]}  c5 {[%clk 0:02:58]} 11. Re1 {[%clk 0:03:02]}  Nc6 {[%clk 0:02:52]} 12. Nf1 {[%clk 0:03:00]}  h6 {[%clk 0:02:52]} 13. Ng3 {[%clk 0:03:00]}  Re8 {[%clk 0:02:52]} 14. h3 {[%clk 0:02:59]}  Be6 {[%clk 0:02:52]} 15. Nh2 {[%clk 0:02:55]}  d5 {[%clk 0:02:51]} 16. Qf3 {[%clk 0:02:55]}  d4 {[%clk 0:02:48]} 17. Nf5 {[%clk 0:02:35]}  Bf8 {[%clk 0:02:45]} 18. Bd2 {[%clk 0:02:23]}  Rc8 {[%clk 0:02:34]} 19. Ng4 {[%clk 0:02:04]}  Nxg4 {[%clk 0:02:26]} 20. hxg4 {[%clk 0:02:04]}  f6 {[%clk 0:02:21]} 21. Rec1 {[%clk 0:01:58]}  c4 {[%clk 0:02:16]} 22. dxc4 {[%clk 0:01:52]}  bxc4 {[%clk 0:02:13]} 23. Ba4 {[%clk 0:01:49]}  Qb6 {[%clk 0:01:57]} 24. b3 {[%clk 0:01:45]}  Red8 {[%clk 0:01:33]} 25. bxc4 {[%clk 0:01:31]}  dxc3 {[%clk 0:01:32]} 26. Bxc3 {[%clk 0:01:18]}  Nd4 {[%clk 0:01:32]} 27. Bxd4 {[%clk 0:01:01]}  exd4 {[%clk 0:01:33]} 28. Rab1 {[%clk 0:01:00]}  Qc5 {[%clk 0:01:31]} 29. Bb3 {[%clk 0:00:48]}  a5 {[%clk 0:01:20]} 30. Rd1 {[%clk 0:00:43]}  g6 {[%clk 0:01:14]} 31. Ng3 {[%clk 0:00:38]}  Kg7 {[%clk 0:01:12]} 32. Ne2 {[%clk 0:00:26]}  Qg5 {[%clk 0:01:06]} 33. Qg3 {[%clk 0:00:10]}  Bd6 {[%clk 0:00:48]} 34. f4 {[%clk 0:00:06]}  Qxg4 {[%clk 0:00:47]} 35. Qf3 {[%clk 0:00:07]}  a4 {[%clk 0:00:33]} 36. Bxa4 {[%clk 0:00:06]}  Qxf3 {[%clk 0:00:33]} 37. gxf3 {[%clk 0:00:06]}  Bxc4 {[%clk 0:00:33]} 38. Rb7+ {[%clk 0:00:06]}  Kh8 {[%clk 0:00:32]} 39. Bb5 {[%clk 0:00:05]}  d3 {[%clk 0:00:22]} 40. Bxc4 {[%clk 0:00:03]}  Rxc4 {[%clk 0:00:23]} 41. Ng3 {[%clk 0:00:01]}  Bxf4 {[%clk 0:00:22]} 42. Nf1 {[%clk 0:00:02]}  d2 {[%clk 0:00:19]} 43. Nxd2 {[%clk 0:00:01]}  Rcd4 {[%clk 0:00:15]} 0-1


[Site "https://www.chess.com"]

[Event "Titled Tuesday Blitz March 21 Early 2023"]
[White "Shimanov, Aleksandr"]
[Black "Andreikin, Dmitry"]
[WhiteFideId "4198603"]
[BlackFideId "4158814"]
[WhiteElo "2631"]
[BlackElo "2736"]
[Result "0-1"]
[Round "06"]
[TimeControl "180+2"]
[Date "2023.03.21"]
[WhiteClock "0:00:01"]
[BlackClock "0:00:10"]

1. e4 {[%clk 0:03:00]}  g6 {[%clk 0:02:56]} 2. d4 {[%clk 0:03:00]}  Bg7 {[%clk 0:02:56]} 3. c4 {[%clk 0:02:56]}  d6 {[%clk 0:02:54]} 4. Nc3 {[%clk 0:02:54]}  Nc6 {[%clk 0:02:54]} 5. Be3 {[%clk 0:02:54]}  e5 {[%clk 0:02:53]} 6. d5 {[%clk 0:02:49]}  Nd4 {[%clk 0:02:51]} 7. Nge2 {[%clk 0:02:49]}  Nxe2 {[%clk 0:02:48]} 8. Bxe2 {[%clk 0:02:50]}  Nf6 {[%clk 0:02:45]} 9. c5 {[%clk 0:02:43]}  h5 {[%clk 0:02:43]} 10. cxd6 {[%clk 0:02:41]}  cxd6 {[%clk 0:02:43]} 11. Bb5+ {[%clk 0:02:24]}  Kf8 {[%clk 0:02:42]} 12. f3 {[%clk 0:02:21]}  Bh6 {[%clk 0:02:39]} 13. Bxh6+ {[%clk 0:02:13]}  Rxh6 {[%clk 0:02:40]} 14. Qd2 {[%clk 0:02:13]}  Kg7 {[%clk 0:02:40]} 15. h4 {[%clk 0:02:12]}  a6 {[%clk 0:02:35]} 16. Bd3 {[%clk 0:02:10]}  Bd7 {[%clk 0:02:34]} 17. O-O-O {[%clk 0:02:10]}  Rh8 {[%clk 0:02:29]} 18. Kb1 {[%clk 0:02:10]}  b5 {[%clk 0:02:27]} 19. Rc1 {[%clk 0:02:10]}  Qb6 {[%clk 0:02:25]} 20. Nd1 {[%clk 0:01:54]}  a5 {[%clk 0:02:12]} 21. Ne3 {[%clk 0:01:53]}  a4 {[%clk 0:02:12]} 22. Nc2 {[%clk 0:01:44]}  Rhc8 {[%clk 0:02:02]} 23. a3 {[%clk 0:01:41]}  Rc5 {[%clk 0:01:53]} 24. Nb4 {[%clk 0:01:41]}  Rac8 {[%clk 0:01:53]} 25. Rcg1 {[%clk 0:01:38]}  R5c7 {[%clk 0:01:47]} 26. Be2 {[%clk 0:01:08]}  Qf2 {[%clk 0:01:42]} 27. Nd3 {[%clk 0:01:00]}  Qd4 {[%clk 0:01:40]} 28. Rd1 {[%clk 0:00:54]}  Rc2 {[%clk 0:01:07]} 29. Qxc2 {[%clk 0:00:53]}  Rxc2 {[%clk 0:01:08]} 30. Kxc2 {[%clk 0:00:54]}  Qe3 {[%clk 0:01:06]} 31. Rd2 {[%clk 0:00:53]}  Be8 {[%clk 0:01:03]} 32. Re1 {[%clk 0:00:47]}  Nd7 {[%clk 0:01:01]} 33. Bd1 {[%clk 0:00:44]}  Qb6 {[%clk 0:00:54]} 34. Kb1 {[%clk 0:00:43]}  Qd4 {[%clk 0:00:53]} 35. Kc1 {[%clk 0:00:42]}  Qb6 {[%clk 0:00:36]} 36. Kb1 {[%clk 0:00:40]}  Qd8 {[%clk 0:00:34]} 37. g3 {[%clk 0:00:39]}  Nb6 {[%clk 0:00:35]} 38. Nb4 {[%clk 0:00:35]}  Nc4 {[%clk 0:00:34]} 39. Rh2 {[%clk 0:00:33]}  Qb6 {[%clk 0:00:34]} 40. Be2 {[%clk 0:00:26]}  Nd2+ {[%clk 0:00:34]} 41. Kc2 {[%clk 0:00:19]}  Qe3 {[%clk 0:00:32]} 42. Nd3 {[%clk 0:00:15]}  Nxf3 {[%clk 0:00:23]} 43. Bxf3 {[%clk 0:00:14]}  Qxf3 {[%clk 0:00:24]} 44. Ree2 {[%clk 0:00:05]}  Qxg3 {[%clk 0:00:22]} 45. Kd2 {[%clk 0:00:04]}  Bd7 {[%clk 0:00:16]} 46. Reg2 {[%clk 0:00:02]}  Qf3 {[%clk 0:00:16]} 47. Re2 {[%clk 0:00:02]}  Bg4 {[%clk 0:00:15]} 48. Re3 {[%clk 0:00:03]}  Qf1 {[%clk 0:00:14]} 49. Kc3 {[%clk 0:00:03]}  Qd1 {[%clk 0:00:13]} 50. Rd2 {[%clk 0:00:03]}  Qh1 {[%clk 0:00:12]} 51. Kb4 {[%clk 0:00:02]}  Qxh4 {[%clk 0:00:12]} 52. Kxb5 {[%clk 0:00:03]}  Qg5 {[%clk 0:00:13]} 53. Rde2 {[%clk 0:00:01]}  Bxe2 {[%clk 0:00:12]} 54. Rxe2 {[%clk 0:00:02]}  h4 {[%clk 0:00:12]} 55. Kxa4 {[%clk 0:00:02]}  h3 {[%clk 0:00:13]} 56. Nf2 {[%clk 0:00:02]}  Qg2 {[%clk 0:00:12]} 57. Rc2 {[%clk 0:00:02]}  h2 {[%clk 0:00:13]} 58. Kb3 {[%clk 0:00:02]}  h1=Q {[%clk 0:00:12]} 59. Nxh1 {[%clk 0:00:02]}  Qxh1 {[%clk 0:00:13]} 60. Rc4 {[%clk 0:00:02]}  g5 {[%clk 0:00:12]} 61. a4 {[%clk 0:00:03]}  g4 {[%clk 0:00:13]} 62. a5 {[%clk 0:00:03]}  g3 {[%clk 0:00:14]} 63. a6 {[%clk 0:00:03]}  g2 {[%clk 0:00:13]} 64. a7 {[%clk 0:00:04]}  Qa1 {[%clk 0:00:10]} 65. Ra4 {[%clk 0:00:03]}  Qxa4+ {[%clk 0:00:10]} 66. Kxa4 {[%clk 0:00:03]}  g1=Q {[%clk 0:00:11]} 67. a8=Q {[%clk 0:00:01]}  Qa1+ {[%clk 0:00:10]} 0-1


[Site "https://www.chess.com"]

[Event "Titled Tuesday Blitz March 21 Early 2023"]
[White "Duda, Jan-Krzysztof"]
[Black "Nguyen, Ngoc Truong Son"]
[WhiteFideId "1170546"]
[BlackFideId "12401110"]
[WhiteElo "2790"]
[BlackElo "2571"]
[Result "1-0"]
[Round "06"]
[TimeControl "180+2"]
[Date "2023.03.21"]
[WhiteClock "0:00:03"]
[BlackClock "0:00:01"]

1. e4 {[%clk 0:03:00]}  c5 {[%clk 0:02:56]} 2. Nf3 {[%clk 0:03:01]}  e6 {[%clk 0:02:57]} 3. d4 {[%clk 0:03:00]}  cxd4 {[%clk 0:02:58]} 4. Nxd4 {[%clk 0:03:00]}  Nc6 {[%clk 0:02:58]} 5. Nc3 {[%clk 0:03:00]}  a6 {[%clk 0:02:57]} 6. Nxc6 {[%clk 0:02:58]}  bxc6 {[%clk 0:02:58]} 7. Bd3 {[%clk 0:02:58]}  d5 {[%clk 0:02:55]} 8. O-O {[%clk 0:02:58]}  Nf6 {[%clk 0:02:54]} 9. Qe2 {[%clk 0:02:58]}  Be7 {[%clk 0:02:54]} 10. b3 {[%clk 0:02:58]}  O-O {[%clk 0:02:41]} 11. Bb2 {[%clk 0:02:58]}  c5 {[%clk 0:02:39]} 12. Rad1 {[%clk 0:02:10]}  Bb7 {[%clk 0:01:47]} 13. exd5 {[%clk 0:02:00]}  exd5 {[%clk 0:01:48]} 14. Rfe1 {[%clk 0:02:00]}  Re8 {[%clk 0:01:48]} 15. Qf3 {[%clk 0:01:45]}  Qc7 {[%clk 0:01:36]} 16. Qh3 {[%clk 0:01:43]}  d4 {[%clk 0:01:28]} 17. Ne2 {[%clk 0:01:24]}  Bd6 {[%clk 0:01:17]} 18. c3 {[%clk 0:01:21]}  Re5 {[%clk 0:01:03]} 19. Ng3 {[%clk 0:01:10]}  Rae8 {[%clk 0:01:01]} 20. Rxe5 {[%clk 0:01:09]}  Bxe5 {[%clk 0:01:02]} 21. cxd4 {[%clk 0:01:08]}  Bxd4 {[%clk 0:00:58]} 22. Bxd4 {[%clk 0:01:06]}  cxd4 {[%clk 0:00:59]} 23. Ne2 {[%clk 0:00:55]}  Qe5 {[%clk 0:00:29]} 24. Qg3 {[%clk 0:00:46]}  Qc5 {[%clk 0:00:17]} 25. h3 {[%clk 0:00:40]}  h6 {[%clk 0:00:16]} 26. Nxd4 {[%clk 0:00:36]}  Be4 {[%clk 0:00:16]} 27. Bxa6 {[%clk 0:00:28]}  Nd5 {[%clk 0:00:12]} 28. Bc4 {[%clk 0:00:25]}  Kh7 {[%clk 0:00:08]} 29. Bxd5 {[%clk 0:00:21]}  Qxd5 {[%clk 0:00:08]} 30. Kh2 {[%clk 0:00:15]}  Bg6 {[%clk 0:00:07]} 31. Rd2 {[%clk 0:00:15]}  Re4 {[%clk 0:00:06]} 32. Nf3 {[%clk 0:00:15]}  Qa5 {[%clk 0:00:06]} 33. Qd6 {[%clk 0:00:15]}  Re6 {[%clk 0:00:06]} 34. Qf4 {[%clk 0:00:11]}  Rf6 {[%clk 0:00:06]} 35. Qe5 {[%clk 0:00:11]}  Qb4 {[%clk 0:00:05]} 36. Rd4 {[%clk 0:00:09]}  Qc3 {[%clk 0:00:04]} 37. Qe3 {[%clk 0:00:06]}  Qb2 {[%clk 0:00:04]} 38. a4 {[%clk 0:00:05]}  Re6 {[%clk 0:00:04]} 39. Rd2 {[%clk 0:00:03]}  Qa3 {[%clk 0:00:03]} 40. Qc3 {[%clk 0:00:03]}  Rb6 {[%clk 0:00:02]} 41. Nd4 {[%clk 0:00:03]}  Qd6+ {[%clk 0:00:03]} 42. Qg3 {[%clk 0:00:03]}  Qb4 {[%clk 0:00:03]} 43. Rd1 {[%clk 0:00:03]}  Rd6 {[%clk 0:00:03]} 44. Nc2 {[%clk 0:00:03]}  Bxc2 {[%clk 0:00:03]} 45. Rxd6 {[%clk 0:00:03]}  Bxb3 {[%clk 0:00:03]} 46. a5 {[%clk 0:00:03]}  Bc4 {[%clk 0:00:01]} 47. a6 {[%clk 0:00:03]} 1-0


[Site "https://www.chess.com"]

[Event "Titled Tuesday Blitz March 21 Early 2023"]
[White "Howell, David W L"]
[Black "Bachmann, Axel"]
[WhiteFideId "410608"]
[BlackFideId "3700488"]
[WhiteElo "2567"]
[BlackElo "2605"]
[Result "1-0"]
[Round "06"]
[TimeControl "180+2"]
[Date "2023.03.21"]
[WhiteClock "0:00:07"]
[BlackClock "0:00:11"]

1. d4 {[%clk 0:02:57]}  Nf6 {[%clk 0:02:07]} 2. c4 {[%clk 0:02:57]}  e6 {[%clk 0:02:07]} 3. Nf3 {[%clk 0:02:57]}  Bb4+ {[%clk 0:02:06]} 4. Nc3 {[%clk 0:02:53]}  b6 {[%clk 0:02:05]} 5. e3 {[%clk 0:02:50]}  Bb7 {[%clk 0:02:05]} 6. Bd3 {[%clk 0:02:50]}  O-O {[%clk 0:02:05]} 7. O-O {[%clk 0:02:50]}  d5 {[%clk 0:02:05]} 8. cxd5 {[%clk 0:02:42]}  exd5 {[%clk 0:02:06]} 9. Ne5 {[%clk 0:02:42]}  Re8 {[%clk 0:02:03]} 10. Bd2 {[%clk 0:02:27]}  c5 {[%clk 0:01:58]} 11. a3 {[%clk 0:02:17]}  Bxc3 {[%clk 0:01:43]} 12. Bxc3 {[%clk 0:02:08]}  c4 {[%clk 0:01:43]} 13. Bc2 {[%clk 0:02:05]}  Nc6 {[%clk 0:01:44]} 14. b3 {[%clk 0:01:43]}  b5 {[%clk 0:01:40]} 15. Rb1 {[%clk 0:01:41]}  Qe7 {[%clk 0:00:49]} 16. bxc4 {[%clk 0:01:30]}  bxc4 {[%clk 0:00:48]} 17. Ba4 {[%clk 0:01:06]}  Rec8 {[%clk 0:00:47]} 18. f3 {[%clk 0:00:54]}  h6 {[%clk 0:00:47]} 19. Qc2 {[%clk 0:00:53]}  Rc7 {[%clk 0:00:46]} 20. Rxb7 {[%clk 0:00:48]}  Nxe5 {[%clk 0:00:20]} 21. Rxc7 {[%clk 0:00:42]}  Nxf3+ {[%clk 0:00:21]} 22. gxf3 {[%clk 0:00:22]}  Qxc7 {[%clk 0:00:22]} 23. Kh1 {[%clk 0:00:20]}  Qe7 {[%clk 0:00:22]} 24. Re1 {[%clk 0:00:18]}  Qxa3 {[%clk 0:00:22]} 25. e4 {[%clk 0:00:17]}  dxe4 {[%clk 0:00:20]} 26. fxe4 {[%clk 0:00:18]}  Rd8 {[%clk 0:00:18]} 27. d5 {[%clk 0:00:17]}  Nh5 {[%clk 0:00:16]} 28. Bc6 {[%clk 0:00:16]}  Rd6 {[%clk 0:00:16]} 29. Rg1 {[%clk 0:00:15]}  Nf4 {[%clk 0:00:15]} 30. Rxg7+ {[%clk 0:00:15]}  Kf8 {[%clk 0:00:15]} 31. Rg1 {[%clk 0:00:15]}  Rg6 {[%clk 0:00:15]} 32. Rxg6 {[%clk 0:00:15]}  Nxg6 {[%clk 0:00:16]} 33. Kg2 {[%clk 0:00:15]}  Qe7 {[%clk 0:00:14]} 34. Kh1 {[%clk 0:00:09]}  Qh4 {[%clk 0:00:11]} 35. Qe2 {[%clk 0:00:08]}  Qf4 {[%clk 0:00:11]} 36. Bd2 {[%clk 0:00:08]}  Qe5 {[%clk 0:00:11]} 37. Qxc4 {[%clk 0:00:08]}  Kg7 {[%clk 0:00:11]} 38. Bc3 {[%clk 0:00:07]} 1-0


[Site "https://www.chess.com"]

[Event "Titled Tuesday Blitz March 21 Early 2023"]
[White "Gharibyan, Mamikon"]
[Black "Sarana, Alexey"]
[WhiteFideId "13308300"]
[BlackFideId "24133795"]
[WhiteElo "2445"]
[BlackElo "2714"]
[Result "1-0"]
[Round "06"]
[TimeControl "180+2"]
[Date "2023.03.21"]
[WhiteClock "0:00:03"]
[BlackClock "0:00:02"]

1. d4 {[%clk 0:02:40]}  Nf6 {[%clk 0:02:59]} 2. c4 {[%clk 0:02:38]}  e6 {[%clk 0:02:59]} 3. Nf3 {[%clk 0:02:35]}  d5 {[%clk 0:02:59]} 4. g3 {[%clk 0:02:29]}  dxc4 {[%clk 0:02:59]} 5. Bg2 {[%clk 0:02:29]}  Nc6 {[%clk 0:02:59]} 6. O-O {[%clk 0:02:28]}  Rb8 {[%clk 0:02:58]} 7. a4 {[%clk 0:02:28]}  Bb4 {[%clk 0:02:56]} 8. Bd2 {[%clk 0:02:01]}  O-O {[%clk 0:02:45]} 9. Bxb4 {[%clk 0:01:58]}  Nxb4 {[%clk 0:02:45]} 10. Na3 {[%clk 0:01:58]}  b6 {[%clk 0:02:41]} 11. Nxc4 {[%clk 0:01:58]}  a5 {[%clk 0:02:40]} 12. Rc1 {[%clk 0:01:54]}  Ba6 {[%clk 0:02:40]} 13. b3 {[%clk 0:01:49]}  Qe7 {[%clk 0:02:40]} 14. e3 {[%clk 0:01:41]}  Rfd8 {[%clk 0:02:39]} 15. Qe2 {[%clk 0:01:41]}  c5 {[%clk 0:02:22]} 16. Rfd1 {[%clk 0:01:37]}  cxd4 {[%clk 0:02:16]} 17. Nxd4 {[%clk 0:01:35]}  Nfd5 {[%clk 0:02:17]} 18. h4 {[%clk 0:01:31]}  h6 {[%clk 0:02:15]} 19. Rd2 {[%clk 0:01:19]}  Rbc8 {[%clk 0:02:13]} 20. Qh5 {[%clk 0:01:02]}  Rc5 {[%clk 0:02:11]} 21. Qg4 {[%clk 0:00:38]}  Qf6 {[%clk 0:02:00]} 22. Nb5 {[%clk 0:00:33]}  Bxb5 {[%clk 0:01:10]} 23. axb5 {[%clk 0:00:32]}  Rxb5 {[%clk 0:01:10]} 24. e4 {[%clk 0:00:30]}  Nc7 {[%clk 0:01:10]} 25. Nd6 {[%clk 0:00:17]}  Rc5 {[%clk 0:01:09]} 26. Rcd1 {[%clk 0:00:11]}  h5 {[%clk 0:01:04]} 27. Qe2 {[%clk 0:00:11]}  Qc3 {[%clk 0:00:45]} 28. Nb7 {[%clk 0:00:09]}  Rxd2 {[%clk 0:00:38]} 29. Rxd2 {[%clk 0:00:10]}  Rb5 {[%clk 0:00:27]} 30. Rd8+ {[%clk 0:00:07]}  Kh7 {[%clk 0:00:27]} 31. Rd7 {[%clk 0:00:08]}  Kg8 {[%clk 0:00:20]} 32. Nd6 {[%clk 0:00:07]}  Rc5 {[%clk 0:00:11]} 33. Rd8+ {[%clk 0:00:07]}  Kh7 {[%clk 0:00:11]} 34. Nxf7 {[%clk 0:00:08]}  Qf6 {[%clk 0:00:10]} 35. Rh8+ {[%clk 0:00:02]}  Kg6 {[%clk 0:00:11]} 36. e5 {[%clk 0:00:02]}  Qf5 {[%clk 0:00:01]} 37. Be4 {[%clk 0:00:03]}  Qxe4 {[%clk 0:00:01]} 38. Qxe4+ {[%clk 0:00:02]}  Kxf7 {[%clk 0:00:02]} 39. Rxh5 {[%clk 0:00:03]} 1-0


[Site "https://www.chess.com"]

[Event "Titled Tuesday Blitz March 21 Early 2023"]
[White "Svane, Rasmus"]
[Black "Drygalov, Andrey"]
[WhiteFideId "4657101"]
[BlackFideId "24171735"]
[WhiteElo "2597"]
[BlackElo "2471"]
[Result "1-0"]
[Round "06"]
[TimeControl "180+2"]
[Date "2023.03.21"]
[WhiteClock "0:00:06"]
[BlackClock "0:00:03"]

1. Nf3 {[%clk 0:03:00]}  Nf6 {[%clk 0:02:59]} 2. g3 {[%clk 0:03:00]}  d5 {[%clk 0:02:59]} 3. Bg2 {[%clk 0:03:00]}  g6 {[%clk 0:03:00]} 4. O-O {[%clk 0:03:00]}  Bg7 {[%clk 0:03:01]} 5. c4 {[%clk 0:03:01]}  c6 {[%clk 0:03:00]} 6. Qb3 {[%clk 0:03:01]}  O-O {[%clk 0:03:00]} 7. d4 {[%clk 0:03:01]}  dxc4 {[%clk 0:02:59]} 8. Qxc4 {[%clk 0:03:01]}  Bf5 {[%clk 0:02:59]} 9. Nc3 {[%clk 0:03:01]}  Nbd7 {[%clk 0:02:59]} 10. Re1 {[%clk 0:03:00]}  Ne4 {[%clk 0:02:59]} 11. Qb3 {[%clk 0:02:56]}  Qb6 {[%clk 0:02:50]} 12. Nh4 {[%clk 0:02:33]}  Qxb3 {[%clk 0:02:08]} 13. axb3 {[%clk 0:02:34]}  Nxc3 {[%clk 0:02:04]} 14. bxc3 {[%clk 0:02:35]}  Be6 {[%clk 0:02:04]} 15. b4 {[%clk 0:02:30]}  Bc4 {[%clk 0:01:59]} 16. f4 {[%clk 0:02:25]}  f5 {[%clk 0:01:57]} 17. e4 {[%clk 0:02:19]}  fxe4 {[%clk 0:01:54]} 18. Bxe4 {[%clk 0:02:20]}  Nf6 {[%clk 0:01:53]} 19. Bg2 {[%clk 0:02:20]}  Rfe8 {[%clk 0:01:51]} 20. Nf3 {[%clk 0:02:19]}  Bd5 {[%clk 0:01:49]} 21. Ne5 {[%clk 0:02:16]}  Bxg2 {[%clk 0:01:44]} 22. Kxg2 {[%clk 0:02:17]}  Nd5 {[%clk 0:01:44]} 23. Bd2 {[%clk 0:02:17]}  Bxe5 {[%clk 0:01:41]} 24. Rxe5 {[%clk 0:02:13]}  Kf7 {[%clk 0:01:41]} 25. g4 {[%clk 0:02:09]}  Nb6 {[%clk 0:01:32]} 26. Be1 {[%clk 0:01:53]}  Nc4 {[%clk 0:01:31]} 27. Rc5 {[%clk 0:01:53]}  Nd6 {[%clk 0:01:31]} 28. Kf3 {[%clk 0:01:50]}  a6 {[%clk 0:01:25]} 29. Bh4 {[%clk 0:01:46]}  Rad8 {[%clk 0:01:25]} 30. Re1 {[%clk 0:01:44]}  Nb5 {[%clk 0:01:24]} 31. Re3 {[%clk 0:01:39]}  Rd5 {[%clk 0:01:22]} 32. Bf2 {[%clk 0:01:30]}  Rc8 {[%clk 0:01:11]} 33. Bh4 {[%clk 0:01:21]}  e6 {[%clk 0:01:10]} 34. f5 {[%clk 0:01:07]}  gxf5 {[%clk 0:00:51]} 35. gxf5 {[%clk 0:01:08]}  Re8 {[%clk 0:00:50]} 36. f6 {[%clk 0:00:29]}  Nd6 {[%clk 0:00:50]} 37. Bg3 {[%clk 0:00:21]}  Nf5 {[%clk 0:00:31]} 38. Re1 {[%clk 0:00:20]}  Nxg3 {[%clk 0:00:29]} 39. hxg3 {[%clk 0:00:19]}  Kxf6 {[%clk 0:00:29]} 40. Rh1 {[%clk 0:00:20]}  Kg7 {[%clk 0:00:27]} 41. Ke4 {[%clk 0:00:19]}  Rf8 {[%clk 0:00:22]} 42. c4 {[%clk 0:00:19]}  Rd6 {[%clk 0:00:18]} 43. Rch5 {[%clk 0:00:18]}  Rh8 {[%clk 0:00:16]} 44. R1h4 {[%clk 0:00:18]}  h6 {[%clk 0:00:14]} 45. Rg4+ {[%clk 0:00:18]}  Kf6 {[%clk 0:00:14]} 46. Rf4+ {[%clk 0:00:19]}  Kg6 {[%clk 0:00:15]} 47. Rhh4 {[%clk 0:00:17]}  Rhd8 {[%clk 0:00:14]} 48. Rhg4+ {[%clk 0:00:15]}  Kh7 {[%clk 0:00:11]} 49. Rf7+ {[%clk 0:00:16]}  Kh8 {[%clk 0:00:12]} 50. Ke5 {[%clk 0:00:16]}  b6 {[%clk 0:00:09]} 51. Rf6 {[%clk 0:00:13]}  Kh7 {[%clk 0:00:09]} 52. Rh4 {[%clk 0:00:14]}  c5 {[%clk 0:00:07]} 53. Rfxh6+ {[%clk 0:00:13]}  Kg7 {[%clk 0:00:07]} 54. Rh7+ {[%clk 0:00:13]}  Kg6 {[%clk 0:00:07]} 55. bxc5 {[%clk 0:00:11]}  bxc5 {[%clk 0:00:07]} 56. d5 {[%clk 0:00:06]}  Kg5 {[%clk 0:00:03]} 57. Rg7# {[%clk 0:00:06]} 1-0


[Site "https://www.chess.com"]

[Event "Titled Tuesday Blitz March 21 Early 2023"]
[White "Tsydypov, Zhamsaran"]
[Black "Perez Ponsa, Federico"]
[WhiteFideId "4108566"]
[BlackFideId "117927"]
[WhiteElo "2584"]
[BlackElo "2592"]
[Result "1/2-1/2"]
[Round "06"]
[TimeControl "180+2"]
[Date "2023.03.21"]
[WhiteClock "0:00:44"]
[BlackClock "0:00:54"]

1. d4 {[%clk 0:03:00]}  Nf6 {[%clk 0:02:55]} 2. c4 {[%clk 0:03:00]}  g6 {[%clk 0:02:53]} 3. Nf3 {[%clk 0:03:00]}  Bg7 {[%clk 0:02:53]} 4. g3 {[%clk 0:03:01]}  d6 {[%clk 0:02:54]} 5. Bg2 {[%clk 0:03:01]}  O-O {[%clk 0:02:55]} 6. O-O {[%clk 0:03:02]}  Nc6 {[%clk 0:02:54]} 7. Nc3 {[%clk 0:03:02]}  e5 {[%clk 0:02:53]} 8. d5 {[%clk 0:03:02]}  Nb8 {[%clk 0:02:52]} 9. e4 {[%clk 0:03:02]}  a5 {[%clk 0:02:52]} 10. Ne1 {[%clk 0:03:02]}  Na6 {[%clk 0:02:53]} 11. Nd3 {[%clk 0:03:03]}  Nd7 {[%clk 0:02:53]} 12. Be3 {[%clk 0:02:59]}  Ndc5 {[%clk 0:02:51]} 13. f4 {[%clk 0:02:54]}  exf4 {[%clk 0:02:50]} 14. gxf4 {[%clk 0:02:52]}  Nxd3 {[%clk 0:02:42]} 15. Qxd3 {[%clk 0:02:51]}  f5 {[%clk 0:02:42]} 16. Qd2 {[%clk 0:02:47]}  fxe4 {[%clk 0:02:38]} 17. Nxe4 {[%clk 0:02:46]}  Bf5 {[%clk 0:02:24]} 18. Ng5 {[%clk 0:02:43]}  Qd7 {[%clk 0:02:22]} 19. Ne6 {[%clk 0:02:42]}  Rfe8 {[%clk 0:02:16]} 20. Rae1 {[%clk 0:02:41]}  Re7 {[%clk 0:02:08]} 21. Nxg7 {[%clk 0:02:38]}  Kxg7 {[%clk 0:02:07]} 22. Bd4+ {[%clk 0:02:38]}  Kg8 {[%clk 0:02:07]} 23. Rxe7 {[%clk 0:02:37]}  Qxe7 {[%clk 0:02:08]} 24. Re1 {[%clk 0:02:32]}  Qf7 {[%clk 0:02:08]} 25. Qxa5 {[%clk 0:02:31]}  Re8 {[%clk 0:02:04]} 26. Qc3 {[%clk 0:02:28]}  Nc5 {[%clk 0:02:01]} 27. Rxe8+ {[%clk 0:02:20]}  Qxe8 {[%clk 0:02:01]} 28. Bxc5 {[%clk 0:01:55]}  dxc5 {[%clk 0:02:00]} 29. Qe5 {[%clk 0:01:50]}  Qa4 {[%clk 0:01:54]} 30. Bf3 {[%clk 0:01:48]}  Qxc4 {[%clk 0:01:46]} 31. d6 {[%clk 0:01:33]}  Qc1+ {[%clk 0:01:41]} 32. Kg2 {[%clk 0:01:32]}  Qd2+ {[%clk 0:01:41]} 33. Kg3 {[%clk 0:01:33]}  Qxd6 {[%clk 0:01:20]} 34. Qxd6 {[%clk 0:01:24]}  cxd6 {[%clk 0:01:20]} 35. Bxb7 {[%clk 0:01:25]}  Kf8 {[%clk 0:01:16]} 36. a4 {[%clk 0:01:05]}  Ke7 {[%clk 0:01:16]} 37. a5 {[%clk 0:01:06]}  Kd8 {[%clk 0:01:16]} 38. Bd5 {[%clk 0:01:02]}  Kc7 {[%clk 0:01:12]} 39. Kf3 {[%clk 0:01:02]}  Kb8 {[%clk 0:01:06]} 40. Ke3 {[%clk 0:00:56]}  Ka7 {[%clk 0:01:06]} 41. Bc4 {[%clk 0:00:57]}  d5 {[%clk 0:01:03]} 42. Bxd5 {[%clk 0:00:55]}  Ka6 {[%clk 0:01:04]} 43. Kd2 {[%clk 0:00:44]}  Kxa5 {[%clk 0:01:02]} 44. Kc3 {[%clk 0:00:45]}  Kb5 {[%clk 0:00:59]} 45. h4 {[%clk 0:00:45]}  h6 {[%clk 0:00:56]} 46. Bf3 {[%clk 0:00:44]}  Bb1 {[%clk 0:00:54]} 1/2-1/2


[Site "https://www.chess.com"]